lending/lending_fUSD_20260110
["ID","MTS","AMOUNT","RATE_DAILY","PERIOD"]
[401188344,1768030246459,-180.00561417,0.00017236,2]
[401188345,1768030246469,-150.0,0.00017239,2]
[401188346,1768030246479,-150.0,0.00017244,2]
[401188347,1768030246488,-150.0,0.00017247,2]
[401188348,1768030246498,-150.0,0.0001725,2]
[401188349,1768030246507,-561.2,0.00017253,2]
[401188350,1768030246517,-155.42566121,0.00017255,2]
[401188351,1768030246527,-209.66369783,0.00017255,2]
[401188352,1768030246537,-216.2799415,0.00017255,2]
[401188353,1768030246547,-188.04162909,0.00017255,2]
[401188354,1768030246558,-180.00561417,0.00017255,2]
[401188355,1768030246567,-150.0,0.00017258,2]
[401188356,1768030246576,-150.0,0.00017264,2]
[401188357,1768030246586,-805.55508344,0.00017264,2]
[401188358,1768030246596,-155.42566121,0.00017273,2]
[401188359,1768030246606,-209.66369783,0.00017273,2]
[401188360,1768030246615,-216.2799415,0.00017273,2]
[401188361,1768030246625,-188.04162909,0.00017273,2]
[401188362,1768030246635,-180.00561417,0.00017273,2]
[401188363,1768030246645,-433.0,0.00017273,2]
[401188364,1768030246654,-150.0,0.00017276,2]
[401188365,1768030246664,-1908.19922497,0.00017278,2]
[401188366,1768030246674,-1712.34976734,0.00017278,2]
[401188367,1768030246684,-150.0,0.0001728,2]
[401188368,1768030246695,-433.0,0.0001728,2]
[401188369,1768030246704,-150.0,0.00017288,2]
[401188370,1768030246714,-155.42566121,0.00017291,2]
[401188371,1768030246725,-209.66369783,0.00017291,2]
[401188372,1768030246735,-216.2799415,0.00017291,2]
[401188373,1768030246745,-188.04162909,0.00017291,2]
[401188374,1768030246755,-180.00561417,0.00017291,2]
[401188375,1768030246765,-150.0,0.00017295,2]
[401188376,1768030246775,-159.16121496,0.00017298,2]
[401188377,1768030247023,-150.0,0.000173,2]
[401188378,1768030247034,-150.0,0.00017308,2]
[401188379,1768030247045,-155.42566121,0.00017309,2]
[401188380,1768030247055,-209.66369783,0.00017309,2]
[401188381,1768030247065,-216.2799415,0.00017309,2]
[401188382,1768030247074,-188.04162909,0.00017309,2]
[401188383,1768030247084,-180.00561417,0.00017309,2]
[401188384,1768030247094,-150.0,0.00017313,2]
[401188385,1768030247103,-150.0,0.00017316,2]
[401188386,1768030247113,-500.0,0.00017326,2]
[401188387,1768030247122,-561.2,0.00017327,2]
[401188388,1768030247132,-155.42566121,0.00017327,2]
[401188389,1768030247142,-209.66369783,0.00017327,2]
[401188390,1768030247152,-216.2799415,0.00017327,2]
[401188391,1768030247162,-188.04162909,0.00017327,2]
[401188392,1768030247172,-180.00561417,0.00017327,2]
[401188393,1768030247182,-150.0,0.0001733,2]
[401188394,1768030247192,-150.0,0.00017332,2]
[401188395,1768030247202,-1000.0,0.00017334,2]
[401188396,1768030247213,-155.42566121,0.00017345,2]
[401188397,1768030247223,-209.66369783,0.00017345,2]
[401188398,1768030247233,-216.2799415,0.00017345,2]
[401188399,1768030247248,-188.04162909,0.00017345,2]
[401188400,1768030247258,-150.0,0.00017345,2]
[401188401,1768030247269,-180.00561417,0.00017345,2]
[401188402,1768030247278,-150.0,0.0001735,2]
[401188403,1768030247288,-150.0,0.00017351,2]
[401188404,1768030247298,-150.0,0.00017352,2]
[401188405,1768030247309,-155.42566121,0.00017364,2]
[401188406,1768030247319,-209.66369783,0.00017364,2]
[401188407,1768030247330,-216.2799415,0.00017364,2]
[401188408,1768030247341,-188.04162909,0.00017364,2]
[401188409,1768030247351,-180.00561417,0.00017364,2]
[401188410,1768030247362,-150.0,0.00017369,2]
[401188411,1768030247373,-150.0,0.00017372,2]
[401188412,1768030247384,-1000.0,0.00017374,2]
[401188413,1768030247394,-1000.0,0.00017374,2]
[401188414,1768030247404,-155.42566121,0.00017382,2]
[401188415,1768030247415,-209.66369783,0.00017382,2]
[401188416,1768030247425,-216.2799415,0.00017382,2]
[401188417,1768030247435,-188.04162909,0.00017382,2]
[401188418,1768030247446,-180.00561417,0.00017382,2]
[401188419,1768030247456,-150.0,0.00017388,2]
[401188420,1768030247466,-150.0,0.00017388,2]
[401188421,1768030247476,-155.42566121,0.000174,2]
[401188422,1768030247487,-209.66369783,0.000174,2]
[401188423,1768030247497,-216.2799415,0.000174,2]
[401188424,1768030247507,-188.04162909,0.000174,2]
[401188425,1768030247516,-150.0,0.000174,2]
[401188426,1768030247527,-180.00561417,0.000174,2]
[401188427,1768030247537,-561.2,0.00017402,2]
[401188428,1768030247547,-150.0,0.00017406,2]
[401188429,1768030247556,-150.0,0.00017414,2]
[401188430,1768030247566,-155.42566121,0.00017418,2]
[401188431,1768030247576,-209.66369783,0.00017418,2]
[401188432,1768030247586,-216.2799415,0.00017418,2]
[401188433,1768030247596,-188.04162909,0.00017418,2]
[401188434,1768030247606,-180.00561417,0.00017418,2]
[401188435,1768030247615,-150.0,0.00017424,2]
[401188436,1768030247625,-150.0,0.00017425,2]
[401188437,1768030247635,-150.0,0.00017427,2]
[401188438,1768030247645,-1908.19922497,0.00017433,2]
[401188439,1768030247655,-1712.34976734,0.00017433,2]
[401188440,1768030247665,-155.42566121,0.00017436,2]
[401188441,1768030247675,-209.66369783,0.00017436,2]
[401188442,1768030247684,-216.2799415,0.00017436,2]
[401188443,1768030247694,-188.04162909,0.00017436,2]
[401188444,1768030247704,-180.00561417,0.00017436,2]
[401188445,1768030247713,-150.0,0.00017443,2]
[401188446,1768030247723,-1000.0,0.00017445,2]
[401188447,1768030247732,-150.0,0.00017446,2]
[401188448,1768030247741,-150.0,0.0001745,2]
[401188449,1768030247752,-155.42566121,0.00017455,2]
[401188450,1768030247761,-209.66369783,0.00017455,2]
[401188451,1768030247771,-216.2799415,0.00017455,2]
[401188452,1768030247781,-188.04162909,0.00017455,2]
[401188453,1768030247790,-180.00561417,0.00017455,2]
[401188454,1768030247799,-150.0,0.00017456,2]
[401188455,1768030247810,-150.0,0.0001746,2]
[401188456,1768030247820,-150.0,0.00017462,2]
[401188457,1768030247831,-166.66,0.00017471,2]
[401188458,1768030247842,-155.42566121,0.00017473,2]
[401188459,1768030247851,-209.66369783,0.00017473,2]
[401188460,1768030247861,-216.2799415,0.00017473,2]
[401188461,1768030247870,-188.04162909,0.00017473,2]
[401188462,1768030247882,-180.00561417,0.00017473,2]
[401188463,1768030247892,-659.3281205,0.00017473,2]
[401188464,1768030247903,-1000.0,0.00017476,2]
[401188465,1768030247912,-561.2,0.00017477,2]
[401188466,1768030247922,-150.0,0.0001748,2]
[401188467,1768030247931,-150.0,0.00017486,2]
[401188468,1768030247941,-150.0,0.00017486,2]
[401188469,1768030247952,-155.42566121,0.00017491,2]
[401188470,1768030247961,-209.66369783,0.00017491,2]
[401188471,1768030247971,-216.2799415,0.00017491,2]
[401188472,1768030247981,-188.04162909,0.00017491,2]
[401188473,1768030247991,-180.00561417,0.00017491,2]
[401188474,1768030248001,-420.0,0.00017492,2]
[401188475,1768030248011,-150.0,0.00017496,2]
[401188476,1768030248020,-150.0,0.00017498,2]
[401188477,1768030248031,-150.0,0.00017499,2]
[401188478,1768030248040,-150.0,0.000175,2]
[401188479,1768030248050,-155.42566121,0.00017509,2]
[401188480,1768030248059,-209.66369783,0.00017509,2]
[401188481,1768030248069,-216.2799415,0.00017509,2]
[401188482,1768030248079,-188.04162909,0.00017509,2]
[401188483,1768030248089,-150.0,0.00017509,2]
[401188484,1768030248099,-180.00561417,0.00017509,2]
[401188485,1768030248109,-150.0,0.00017518,2]
[401188486,1768030248119,-155.42566121,0.00017527,2]
[401188487,1768030248129,-209.66369783,0.00017527,2]
[401188488,1768030248139,-216.2799415,0.00017527,2]
[401188489,1768030248149,-188.04162909,0.00017527,2]
[401188490,1768030248160,-180.00561417,0.00017527,2]
[401188491,1768030248170,-150.0,0.00017532,2]
[401188492,1768030248181,-150.0,0.00017536,2]
[401188493,1768030248190,-150.0,0.0001754,2]
[401188494,1768030248201,-155.42566121,0.00017545,2]
[401188495,1768030248211,-209.66369783,0.00017545,2]
[401188496,1768030248220,-216.2799415,0.00017545,2]
[401188497,1768030248230,-188.04162909,0.00017545,2]
[401188498,1768030248240,-180.00561417,0.00017545,2]
[401188499,1768030248250,-150.0,0.0001755,2]
[401188500,1768030248260,-150.0,0.0001755,2]
[401188501,1768030248270,-150.0,0.0001755,2]
[401188502,1768030248280,-561.2,0.00017552,2]
[401188503,1768030248291,-150.0,0.00017555,2]
[401188504,1768030248301,-155.42566121,0.00017564,2]
[401188505,1768030248311,-209.66369783,0.00017564,2]
[401188506,1768030248320,-216.2799415,0.00017564,2]
[401188507,1768030248330,-188.04162909,0.00017564,2]
[401188508,1768030248341,-180.00561417,0.00017564,2]
[401188509,1768030248350,-150.0,0.00017568,2]
[401188510,1768030248360,-150.0,0.00017573,2]
[401188511,1768030248371,-1680.0,0.0001758,2]
[401188512,1768030248381,-150.0,0.00017581,2]
[401188513,1768030248391,-155.42566121,0.00017582,2]
[401188514,1768030248400,-209.66369783,0.00017582,2]
[401188515,1768030248411,-216.2799415,0.00017582,2]
[401188516,1768030248422,-188.04162909,0.00017582,2]
[401188517,1768030248431,-180.00561417,0.00017582,2]
[401188518,1768030248441,-150.0,0.00017585,2]
[401188519,1768030248451,-1908.19922497,0.00017589,2]
[401188520,1768030248461,-1712.34976734,0.00017589,2]
[401188521,1768030248471,-150.0,0.00017591,2]
[401188522,1768030248482,-150.0,0.00017592,2]
[401188523,1768030248492,-155.42566121,0.000176,2]
[401188524,1768030248502,-209.66369783,0.000176,2]
[401188525,1768030248513,-216.2799415,0.000176,2]
[401188526,1768030248523,-188.04162909,0.000176,2]
[401188527,1768030248533,-150.0,0.000176,2]
[401188528,1768030248543,-180.00561417,0.000176,2]
[401188529,1768030248552,-150.0,0.00017604,2]
[401188530,1768030248562,-150.0,0.0001761,2]
[401188531,1768030248572,-155.42566121,0.00017618,2]
[401188532,1768030248582,-209.66369783,0.00017618,2]
[401188533,1768030248592,-216.2799415,0.00017618,2]
[401188534,1768030248602,-188.04162909,0.00017618,2]
[401188535,1768030248612,-180.00561417,0.00017618,2]
[401188536,1768030248622,-150.0,0.00017623,2]
[401188537,1768030248632,-561.2,0.00017626,2]
[401188538,1768030248642,-150.0,0.00017629,2]
[401188539,1768030248652,-1000.0,0.00017634,2]
[401188540,1768030248662,-155.42566121,0.00017636,2]
[401188541,1768030248672,-209.66369783,0.00017636,2]
[401188542,1768030248682,-216.2799415,0.00017636,2]
[401188543,1768030248692,-188.04162909,0.00017636,2]
[401188544,1768030248702,-180.00561417,0.00017636,2]
[401188545,1768030248711,-150.0,0.0001764,2]
[401188546,1768030248721,-10537.80982193,0.0001764,2]
[401188547,1768030248731,-197.9969081,0.00017647,2]
[401188548,1768030248741,-514.84070869,0.00017647,2]
[401188549,1768030248751,-151.0,0.00017647,2]
[401188550,1768030248761,-187.78006525,0.00017647,2]
[401188551,1768030248772,-150.0,0.00017647,2]
[401188552,1768030248782,-150.0,0.0001765,2]
[401188553,1768030248791,-155.42566121,0.00017655,2]
[401188554,1768030248801,-209.66369783,0.00017655,2]
[401188555,1768030248811,-216.2799415,0.00017655,2]
[401188556,1768030248821,-188.04162909,0.00017655,2]
[401188557,1768030248835,-180.00561417,0.00017655,2]
[401188558,1768030248845,-150.0,0.00017665,2]
[401188559,1768030248855,-150.0,0.00017666,2]
[401188560,1768030248864,-155.42566121,0.00017673,2]
[401188561,1768030248875,-209.66369783,0.00017673,2]
[401188562,1768030248884,-216.2799415,0.00017673,2]
[401188563,1768030248894,-188.04162909,0.00017673,2]
[401188564,1768030248903,-150.0,0.00017673,2]
[401188565,1768030248913,-180.00561417,0.00017673,2]
[401188566,1768030248922,-150.0,0.00017676,2]
[401188567,1768030248932,-150.0,0.00017685,2]
[401188568,1768030248942,-155.42566121,0.00017691,2]
[401188569,1768030248951,-209.66369783,0.00017691,2]
[401188570,1768030248961,-216.2799415,0.00017691,2]
[401188571,1768030248972,-188.04162909,0.00017691,2]
[401188572,1768030248982,-180.00561417,0.00017691,2]
[401188573,1768030248991,-600.0,0.00017696,2]
[401188574,1768030249001,-150.0,0.000177,2]
[401188575,1768030249011,-1000.0,0.000177,2]
[401188576,1768030249020,-561.2,0.00017701,2]
[401188577,1768030249031,-150.0,0.00017703,2]
[401188578,1768030249041,-150.0,0.00017707,2]
[401188579,1768030249051,-933.68,0.00017707,2]
[401188580,1768030249061,-155.42566121,0.00017709,2]
[401188581,1768030249070,-209.66369783,0.00017709,2]
[401188582,1768030249081,-216.2799415,0.00017709,2]
[401188583,1768030249091,-188.04162909,0.00017709,2]
[401188584,1768030249101,-180.00561417,0.00017709,2]
[401188585,1768030249110,-150.0,0.00017712,2]
[401188586,1768030249120,-150.0,0.00017722,2]
[401188587,1768030249130,-150.0,0.00017723,2]
[401188588,1768030249140,-155.42566121,0.00017727,2]
[401188589,1768030249150,-209.66369783,0.00017727,2]
[401188590,1768030249160,-216.2799415,0.00017727,2]
[401188591,1768030249170,-188.04162909,0.00017727,2]
[401188592,1768030249181,-180.00561417,0.00017727,2]
[401188593,1768030249191,-7554.21886386,0.0001773,2]
[401188594,1768030249201,-150.0,0.0001774,2]
[401188595,1768030249211,-150.0,0.00017743,2]
[401188596,1768030249221,-150.0,0.00017743,2]
[401188597,1768030249231,-1908.19922497,0.00017744,2]
[401188598,1768030249242,-1712.34976734,0.00017744,2]
[401188599,1768030249252,-155.42566121,0.00017745,2]
[401188600,1768030249262,-209.66369783,0.00017745,2]
[401188601,1768030249272,-216.2799415,0.00017745,2]
[401188602,1768030249282,-188.04162909,0.00017745,2]
[401188603,1768030249292,-180.00561417,0.00017745,2]
[401188604,1768030249302,-150.0,0.00017748,2]
[401188605,1768030249312,-1000.0,0.00017748,2]
[401188606,1768030249322,-150.0,0.00017749,2]
[401188607,1768030249332,-150.0,0.0001775,2]
[401188608,1768030249342,-150.0,0.00017755,2]
[401188609,1768030249353,-150.0,0.00017759,2]
[401188610,1768030249363,-270.12,0.00017759,2]
[401188611,1768030249373,-433.0,0.00017759,2]
[401188612,1768030249389,-155.42566121,0.00017764,2]
[401188613,1768030249399,-209.66369783,0.00017764,2]
[401188614,1768030249408,-216.2799415,0.00017764,2]
[401188615,1768030249431,-188.04162909,0.00017764,2]
[401188616,1768030249441,-180.00561417,0.00017764,2]
[401188617,1768030249450,-1000.0,0.00017773,2]
[401188618,1768030249545,-561.2,0.00017776,2]
[401188619,1768030249556,-150.0,0.00017777,2]
[401188620,1768030249566,-155.42566121,0.00017782,2]
[401188621,1768030249575,-209.66369783,0.00017782,2]
[401188622,1768030249584,-216.2799415,0.00017782,2]
[401188623,1768030249593,-188.04162909,0.00017782,2]
[401188624,1768030249603,-180.00561417,0.00017782,2]
[401188625,1768030249612,-150.0,0.00017784,2]
[401188626,1768030249622,-150.0,0.00017791,2]
[401188627,1768030249632,-150.0,0.00017796,2]
[401188628,1768030249641,-2000.0,0.000178,2]
[401188629,1768030249651,-155.42566121,0.000178,2]
[401188630,1768030249660,-209.66369783,0.000178,2]
[401188631,1768030249670,-216.2799415,0.000178,2]
[401188632,1768030249679,-188.04162909,0.000178,2]
[401188633,1768030249689,-150.0,0.000178,2]
[401188634,1768030249698,-180.00561417,0.000178,2]
[401188635,1768030249707,-1000.0,0.000178,2]
[401188636,1768030249716,-500.0,0.00017808,2]
[401188637,1768030249726,-207.26988174,0.00017808,2]
[401188638,1768030249736,-150.0,0.00017814,2]
[401188639,1768030249746,-155.42566121,0.00017818,2]
[401188640,1768030249755,-209.66369783,0.00017818,2]
[401188641,1768030249765,-216.2799415,0.00017818,2]
[401188642,1768030249774,-188.04162909,0.00017818,2]
[401188643,1768030249784,-180.00561417,0.00017818,2]
[401188644,1768030249793,-150.0,0.0001782,2]
[401188645,1768030249802,-10000.0,0.0001782,2]
[401188646,1768030249813,-10000.0,0.0001782,2]
[401188647,1768030249822,-10000.0,0.0001782,2]
[401188648,1768030249835,-10000.0,0.0001782,2]
[401188649,1768030249844,-159.35537069,0.0001782,2]
[401188650,1768030249853,-433.0,0.00017822,2]
[401188651,1768030249863,-28154.0318888,0.0001783,2]
[401188652,1768030249874,-150.0,0.00017833,2]
[401188653,1768030249884,-150.0,0.00017833,2]
[401188654,1768030249893,-155.42566121,0.00017836,2]
[401188655,1768030249902,-209.66369783,0.00017836,2]
[401188656,1768030249912,-216.2799415,0.00017836,2]
[401188657,1768030249921,-188.04162909,0.00017836,2]
[401188658,1768030249930,-150.0,0.00017836,2]
[401188659,1768030249940,-180.00561417,0.00017836,2]
[401188660,1768030249949,-150.0,0.0001785,2]
[401188661,1768030249958,-561.2,0.00017851,2]
[401188662,1768030249968,-150.0,0.00017852,2]
[401188663,1768030249977,-155.42566121,0.00017855,2]
[401188664,1768030249986,-209.66369783,0.00017855,2]
[401188665,1768030249996,-216.2799415,0.00017855,2]
[401188666,1768030250005,-188.04162909,0.00017855,2]
[401188667,1768030250015,-180.00561417,0.00017855,2]
[401188668,1768030250024,-200.0,0.00017855,2]
[401188669,1768030250034,-150.0,0.00017856,2]
[401188670,1768030250043,-2000.0,0.00017856,2]
[401188671,1768030250053,-200.0,0.00017856,2]
[401188672,1768030250063,-200.0,0.00017856,2]
[401188673,1768030250073,-150.0,0.00017862,2]
[401188674,1768030250082,-501.30688292,0.00017863,2]
[401188675,1768030250092,-150.0,0.0001787,2]
[401188676,1768030250102,-155.42566121,0.00017873,2]
[401188677,1768030250111,-209.66369783,0.00017873,2]
[401188678,1768030250121,-216.2799415,0.00017873,2]
[401188679,1768030250130,-188.04162909,0.00017873,2]
[401188680,1768030250140,-180.00561417,0.00017873,2]
[401188681,1768030250149,-150.0,0.00017874,2]
[401188682,1768030250159,-433.0,0.00017876,2]
[401188683,1768030250169,-1000.0,0.00017884,2]
[401188684,1768030250179,-150.0,0.00017889,2]
[401188685,1768030250188,-433.0,0.0001789,2]
[401188686,1768030250197,-155.42566121,0.00017891,2]
[401188687,1768030250207,-209.66369783,0.00017891,2]
[401188688,1768030250217,-216.2799415,0.00017891,2]
[401188689,1768030250227,-188.04162909,0.00017891,2]
[401188690,1768030250237,-180.00561417,0.00017891,2]
[401188691,1768030250247,-25000.0,0.00017891,3]
[401188692,1768030250256,-150.0,0.00017892,2]
[401188693,1768030250266,-1514.73825484,0.00017893,2]
[401188694,1768030250276,-2464.03631718,0.00017893,2]
[401188695,1768030250286,-3479.95468316,0.00017893,2]
[401188696,1768030250296,-4502.9853,0.00017893,2]
[401188697,1768030250306,-1887.20841984,0.00017898,2]
[401188698,1768030250315,-1887.20841984,0.00017898,2]
[401188699,1768030250324,-1887.20841984,0.00017899,2]
[401188700,1768030250335,-1887.20841984,0.00017899,2]
[401188701,1768030250346,-1887.20841984,0.000179,2]
[401188702,1768030250355,-1192.27317895,0.000179,2]
[401188703,1768030250365,-1740.0035,0.000179,2]
[401188704,1768030250374,-6228.92016198,0.000179,3]
[401188705,1768030250383,-25000.0,0.000179,3]
[401188706,1768030250393,-150.0,0.000179,2]
[401188707,1768030250403,-1050.65296808,0.000179,2]
[401188708,1768030250412,-1050.65296808,0.000179,2]
[401188709,1768030250421,-1908.19922497,0.000179,2]
[401188710,1768030250431,-1050.65296808,0.000179,2]
[401188711,1768030250441,-1050.65296808,0.000179,2]
[401188712,1768030250450,-1050.65296808,0.000179,2]
[401188713,1768030250460,-1050.65296808,0.000179,2]
[401188714,1768030250469,-1050.65296808,0.000179,2]
[401188715,1768030250478,-1050.65296808,0.000179,2]
[401188716,1768030250488,-1050.65296808,0.000179,2]
[401188717,1768030250498,-1050.65296808,0.000179,2]
[401188718,1768030250507,-1050.65296808,0.000179,2]
[401188719,1768030250517,-1050.65296808,0.000179,2]
[401188720,1768030250527,-1050.65296808,0.000179,2]
[401188721,1768030250537,-1050.65296808,0.000179,2]
[401188722,1768030250546,-1050.65296808,0.000179,2]
[401188723,1768030250555,-1050.65296808,0.000179,2]
[401188724,1768030250564,-1009.14113428,0.000179,2]
[401188725,1768030250573,-1712.34976734,0.000179,2]
[401188726,1768030250582,-19102.14113598,0.000179,2]
[401188727,1768030250592,-158.02641495,0.000179,2]
[401188728,1768030250601,-1887.20841984,0.000179,2]
[401188729,1768030250611,-1000.0,0.000179,2]
[401188730,1768030250620,-8118.0,0.000179,2]
[401188731,1768030250629,-161.9,0.00017901,2]
[401188732,1768030250640,-150.0,0.00017907,2]
[401188733,1768030250649,-500.0,0.00017909,2]
[401188734,1768030250659,-155.42566121,0.00017909,2]
[401188735,1768030250668,-209.66369783,0.00017909,2]
[401188736,1768030250678,-216.2799415,0.00017909,2]
[401188737,1768030250687,-188.04162909,0.00017909,2]
[401188738,1768030250697,-180.00561417,0.00017909,2]
[401188739,1768030250707,-150.0,0.00017916,2]
[401188740,1768030250716,-291.0,0.00017917,2]
[401188741,1768030250726,-150.0,0.00017918,2]
[401188742,1768030250735,-561.2,0.00017925,2]
[401188743,1768030250745,-150.0,0.00017926,2]
[401188744,1768030250754,-155.42566121,0.00017927,2]
[401188745,1768030250763,-209.66369783,0.00017927,2]
[401188746,1768030250773,-216.2799415,0.00017927,2]
[401188747,1768030250783,-188.04162909,0.00017927,2]
[401188748,1768030250793,-180.00561417,0.00017927,2]
[401188749,1768030250803,-150.0,0.00017928,2]
[401188750,1768030250812,-433.0,0.00017931,2]
[401188751,1768030250822,-1000.0,0.00017943,2]
[401188752,1768030250834,-150.0,0.00017944,2]
[401188753,1768030250843,-155.42566121,0.00017945,2]
[401188754,1768030250853,-209.66369783,0.00017945,2]
[401188755,1768030250863,-216.2799415,0.00017945,2]
[401188756,1768030250872,-188.04162909,0.00017945,2]
[401188757,1768030250881,-180.00561417,0.00017945,2]
[401188758,1768030250890,-181.00537575,0.00017946,2]
[401188759,1768030250900,-150.0,0.0001795,2]
[401188760,1768030250909,-150.0,0.00017958,2]
[401188761,1768030250919,-150.0,0.00017963,2]
[401188762,1768030250928,-155.42566121,0.00017964,2]
[401188763,1768030250937,-209.66369783,0.00017964,2]
[401188764,1768030250947,-216.2799415,0.00017964,2]
[401188765,1768030250957,-188.04162909,0.00017964,2]
[401188766,1768030250967,-180.00561417,0.00017964,2]
[401188767,1768030250976,-150.0,0.00017964,2]
[401188768,1768030250985,-303.0,0.00017973,2]
[401188769,1768030250995,-500.0,0.00017973,2]
[401188770,1768030251005,-500.0,0.00017973,2]
[401188771,1768030251014,-500.0,0.00017973,2]
[401188772,1768030251024,-150.34167383,0.00017973,2]
[401188773,1768030251033,-610.19552731,0.00017973,2]
[401188774,1768030251043,-500.0,0.00017973,2]
[401188775,1768030251052,-300.29995774,0.00017973,2]
[401188776,1768030251061,-260.97339631,0.00017973,2]
[401188777,1768030251071,-433.9562915,0.00017973,2]
[401188778,1768030251080,-500.0,0.00017973,2]
[401188779,1768030251089,-641.77796518,0.00017973,2]
[401188780,1768030251103,-500.0,0.00017973,2]
[401188781,1768030251112,-500.0,0.00017973,2]
[401188782,1768030251122,-500.0,0.00017973,2]
[401188783,1768030251131,-500.0,0.00017973,2]
[401188784,1768030251140,-500.0,0.00017973,2]
[401188785,1768030251149,-500.0,0.00017973,2]
[401188786,1768030251158,-501.2767774,0.00017973,2]
[401188787,1768030251168,-500.0,0.00017973,2]
[401188788,1768030251178,-500.0,0.00017973,2]
[401188789,1768030251187,-500.0,0.00017973,2]
[401188790,1768030251197,-500.0,0.00017973,2]
[401188791,1768030251207,-500.0,0.00017973,2]
[401188792,1768030251216,-500.0,0.00017973,2]
[401188793,1768030251225,-191.10319937,0.00017973,2]
[401188794,1768030251235,-500.0,0.00017973,2]
[401188795,1768030251244,-500.0,0.00017973,2]
[401188796,1768030251254,-500.0,0.00017973,2]
[401188797,1768030251263,-500.0,0.00017973,2]
[401188798,1768030251273,-500.0,0.00017973,2]
[401188799,1768030251282,-500.0,0.00017973,2]
[401188800,1768030251292,-500.0,0.00017973,2]
[401188801,1768030251302,-500.0,0.00017973,2]
[401188802,1768030251311,-500.0,0.00017973,2]
[401188803,1768030251320,-571.47009533,0.00017973,2]
[401188804,1768030251329,-500.0,0.00017973,2]
[401188805,1768030251339,-500.0,0.00017973,2]
[401188806,1768030251348,-500.0,0.00017973,2]
[401188807,1768030251359,-500.0,0.00017973,2]
[401188808,1768030251368,-500.0,0.00017973,2]
[401188809,1768030251377,-500.0,0.00017973,2]
[401188810,1768030251387,-500.0,0.00017973,2]
[401188811,1768030251396,-500.0,0.00017973,2]
[401188812,1768030251406,-500.0,0.00017973,2]
[401188813,1768030251415,-500.85151996,0.00017973,2]
[401188814,1768030251424,-588.0072514,0.00017973,2]
[401188815,1768030251433,-500.0,0.00017973,2]
[401188816,1768030251445,-150.0,0.00017973,2]
[401188817,1768030251455,-150.0,0.00017973,2]
[401188818,1768030251464,-500.0,0.0001798,2]
[401188819,1768030251473,-500.0,0.0001798,2]
[401188820,1768030251483,-500.0,0.0001798,2]
[401188821,1768030251492,-500.0,0.0001798,2]
[401188822,1768030251502,-500.0,0.0001798,2]
[401188823,1768030251511,-527.72,0.0001798,2]
[401188824,1768030251521,-150.0,0.00017981,2]
[401188825,1768030251530,-155.42566121,0.00017982,2]
[401188826,1768030251539,-209.66369783,0.00017982,2]
[401188827,1768030251549,-216.2799415,0.00017982,2]
[401188828,1768030251559,-188.04162909,0.00017982,2]
[401188829,1768030251568,-180.00561417,0.00017982,2]
[401188830,1768030251578,-500.0,0.00017982,2]
[401188831,1768030251586,-510.74252443,0.0001799,2]
[401188832,1768030251596,-510.74252443,0.0001799,2]
[401188833,1768030251606,-166.66,0.00017996,2]
[401188834,1768030251615,-433.0,0.00017996,2]
[401188835,1768030251624,-3547.4975212,0.00017998,2]
[401188836,1768030251634,-48052.0198651,0.00017998,2]
[401188837,1768030251644,-3929.0617628,0.00017998,2]
[401188838,1768030251654,-90567.27213,0.00017998,2]
[401188839,1768030251663,-11443.4274955,0.00017998,2]
[401188840,1768030251673,-24717.368904,0.00017998,2]
[401188841,1768030251682,-6449.1664054,0.00017998,2]
[401188842,1768030251692,-6665.0576808,0.00017998,2]
[401188843,1768030251702,-300.0,0.00017999,2]